bitfinex/quotes_BTCUSD_20250922
["timestamp","ask_amount","ask_price","bid_price","bid_amount"]
[1758548950050,0.01417088,112750.0,112740.0,0.35205688]
[1758548950256,0.01417088,112750.0,112740.0,0.67524878]
[1758548950685,0.01417088,112750.0,112740.0,0.64509688]
[1758548950893,0.01417088,112750.0,112740.0,0.67524878]
[1758548951324,0.01417088,112750.0,112740.0,0.67532878]
[1758548951945,0.01417088,112750.0,112740.0,0.46769756]
[1758548952154,0.01417088,112750.0,112740.0,0.49784946]
[1758548952568,0.01317088,112750.0,112740.0,0.47684946]
[1758548952785,0.01217088,112750.0,112740.0,0.64524878]
[1758548952995,0.01217088,112750.0,112740.0,0.65424878]
[1758548953196,0.01317088,112750.0,112740.0,0.65124878]
[1758548953413,0.01317088,112750.0,112740.0,0.584118]
[1758548953855,0.01217088,112750.0,112740.0,0.578118]
[1758548954744,0.01217088,112750.0,112740.0,0.583118]
[1758548955180,0.01317088,112750.0,112740.0,0.588118]
[1758548955617,0.01317088,112750.0,112740.0,0.11767868]
[1758548955818,0.01935562,112750.0,112740.0,0.11767868]
[1758548956230,0.02760745,112750.0,112740.0,0.11767868]
[1758548957972,0.36760745,112750.0,112740.0,0.07563514]
[1758548958169,1.77673045,112750.0,112740.0,0.07563514]
[1758548959219,1.57550045,112750.0,112740.0,0.07563514]
[1758548959423,1.59202275,112750.0,112740.0,0.04548324]
[1758548959624,1.57550045,112750.0,112740.0,0.04548324]
[1758548959823,1.59202298,112750.0,112740.0,0.04548324]
[1758548960026,1.59202298,112750.0,112740.0,0.01]
[1758548960299,1.59202298,112750.0,112740.0,0.04548324]
[1758548960512,1.98034298,112750.0,112740.0,0.04548324]
[1758548962055,2.00682324,112750.0,112740.0,0.04548324]
[1758548962272,2.00682324,112750.0,112740.0,0.01]
[1758548962479,2.03350605,112750.0,112740.0,0.04548324]
[1758548963522,2.03250605,112750.0,112740.0,0.04048324]
[1758548963726,2.03250605,112750.0,112740.0,0.04248324]
[1758548963940,1.93642605,112750.0,112740.0,0.04248324]
[1758548964142,2.03234605,112750.0,112740.0,0.03748324]
[1758548964353,2.03434605,112750.0,112740.0,0.03748324]
[1758548964558,2.03434605,112750.0,112740.0,0.002]
[1758548965147,1.64618605,112750.0,112740.0,0.002]
[1758548965309,2.06302166,112750.0,112740.0,0.002]
[1758548965714,1.67498166,112750.0,112740.0,0.002]
[1758548966139,2.06298166,112750.0,112740.0,0.002]
[1758548967181,1.67498166,112750.0,112740.0,0.002]
[1758548967378,1.91162579,112750.0,112740.0,0.002]
[1758548967618,2.00754579,112750.0,112740.0,0.002]
[1758548968759,2.00746579,112750.0,112740.0,0.002]
[1758548968993,1.78381879,112750.0,112740.0,0.002]
[1758548970017,1.39609879,112750.0,112740.0,0.002]
[1758548970195,1.78373879,112750.0,112740.0,0.002]
[1758548970800,1.78330879,112750.0,112740.0,0.002]
[1758548971354,1.78373879,112750.0,112740.0,0.002]
[1758548972346,1.78373577,112750.0,112740.0,0.002]
[1758548973293,1.37957324,112750.0,112740.0,0.002]
[1758548973793,1.76685261,112750.0,112740.0,0.002]
[1758548975107,1.37957261,112750.0,112740.0,0.002]
[1758548975340,1.67073261,112750.0,112740.0,0.002]
[1758548975523,1.76669261,112750.0,112740.0,0.002]
[1758548976127,1.76669687,112750.0,112740.0,0.002]
[1758548977012,1.37957687,112750.0,112740.0,0.002]
[1758548977348,1.76641687,112750.0,112740.0,0.002]
[1758548977480,1.37957687,112750.0,112740.0,0.002]
[1758548977694,1.76398687,112750.0,112740.0,0.002]
[1758548977924,0.34,112740.0,112730.0,0.03548324]
[1758548978124,2.33347074,112740.0,112730.0,0.04482975]
[1758548978321,2.33415074,112740.0,112730.0,0.04482975]
[1758548978640,2.33415964,112740.0,112730.0,0.04482975]
[1758548979126,2.33415964,112740.0,112730.0,0.04682975]
[1758548979325,2.33416179,112740.0,112730.0,0.04682975]
[1758548979858,2.32540279,112740.0,112730.0,0.04682975]
[1758548980757,2.37249601,112740.0,112730.0,0.002]
[1758548980986,2.44450617,112740.0,112730.0,0.002]
[1758548981640,2.44450617,112740.0,112720.0,0.03548324]
[1758548981858,0.34,112720.0,112710.0,0.03548324]
[1758548982035,5.34619579,112720.0,112710.0,0.03548324]
[1758548982242,5.73335579,112720.0,112710.0,0.04181456]
[1758548982453,2.32143479,112720.0,112710.0,0.04385456]
[1758548982872,1.93495479,112720.0,112710.0,0.04385456]
[1758548983203,1.30446579,112720.0,112710.0,0.07168456]
[1758548984171,0.92198579,112720.0,112710.0,0.07168456]
[1758548984369,1.30846579,112720.0,112710.0,0.07168456]
[1758548984573,1.30846579,112720.0,112710.0,0.07268456]
[1758548985575,1.21242579,112720.0,112710.0,0.04781456]
[1758548985791,1.30838579,112720.0,112710.0,0.07268456]
[1758548986517,1.30906579,112720.0,112710.0,0.06768456]
[1758548986726,1.30838579,112720.0,112710.0,0.07268456]
[1758548987106,0.92198579,112720.0,112710.0,0.07268456]
[1758548987332,1.30842579,112720.0,112710.0,0.07268456]
[1758548987740,0.73651579,112720.0,112710.0,0.07268456]
[1758548987948,0.89699379,112720.0,112710.0,0.07268456]
[1758548988154,0.9052642,112720.0,112710.0,0.07268456]
[1758548988351,0.5189442,112720.0,112710.0,0.07268456]
[1758548988769,0.9054242,112720.0,112710.0,0.07268456]
[1758548989548,0.4049862,112720.0,112710.0,0.07268456]
[1758548989745,0.1790092,112720.0,112710.0,0.07268456]
[1758548989910,0.0184662,112720.0,112710.0,0.07268456]
[1758548990116,0.39044,112720.0,112710.0,0.07268456]
[1758548990364,0.4049062,112720.0,112710.0,0.07268456]
[1758548990573,0.01019579,112720.0,112710.0,0.280283]
[1758548990743,0.3904,112720.0,112710.0,0.280283]
[1758548990942,0.39659579,112720.0,112710.0,0.07796646]
[1758548991233,0.39727579,112720.0,112710.0,0.09987646]
[1758548991440,1.42840405,112720.0,112710.0,0.00304]
[1758548991688,1.44759485,112720.0,112710.0,0.03648324]
[1758548991894,1.80413518,112720.0,112710.0,0.03648324]
[1758548992447,1.80413518,112720.0,112710.0,0.03852324]
[1758548992448,1.79253518,112720.0,112710.0,0.03852324]
[1758548992692,1.79321518,112720.0,112710.0,0.06339324]
[1758548992827,1.76673492,112720.0,112710.0,0.04486256]
[1758548993083,1.15219292,112720.0,112710.0,0.07269256]
[1758548993505,0.76252692,112720.0,112710.0,0.07269256]
[1758548993884,0.37500692,112720.0,112710.0,0.07269256]
[1758548994090,0.76252692,112720.0,112710.0,0.07269256]
[1758548995270,0.87565592,112720.0,112710.0,0.07269256]
[1758548995479,0.47159559,112720.0,112710.0,0.07269256]
[1758548995689,0.47159559,112720.0,112710.0,0.29803565]
[1758548995690,0.30990659,112720.0,112710.0,0.29803565]
[1758548995899,0.01846611,112720.0,112710.0,0.280291]
[1758548996107,0.29548,112720.0,112710.0,0.280291]
[1758548996316,0.30167579,112720.0,112710.0,0.280291]
[1758548996647,0.09596,112730.0,112720.0,0.24306594]
[1758548996853,0.60423107,112730.0,112720.0,0.31870812]
[1758548997096,0.60423107,112730.0,112720.0,0.14127732]
[1758548997299,0.50827107,112730.0,112720.0,0.31870812]
[1758548997461,0.10423107,112730.0,112720.0,0.14127732]
[1758548997817,0.89555107,112730.0,112720.0,0.14127732]
[1758548998011,0.39655107,112730.0,112720.0,0.31870812]
[1758548998224,0.40155107,112730.0,112720.0,0.14127732]
[1758548999421,0.40055107,112730.0,112720.0,0.14127732]
[1758548999850,0.39655107,112730.0,112720.0,0.14127732]
[1758549000057,0.39655107,112730.0,112720.0,0.31870812]
[1758549000263,0.39555107,112730.0,112720.0,0.32470812]
[1758549000434,0.00827107,112730.0,112720.0,0.32470812]
[1758549000641,0.36668387,112740.0,112730.0,0.2430502]
[1758549000642,0.14745904,112740.0,112730.0,0.2430502]
[1758549000852,0.42183494,112740.0,112730.0,0.32582771]
[1758549001052,0.02668387,112740.0,112730.0,0.32582771]
[1758549001254,0.29092,112740.0,112730.0,0.32582771]
[1758549001455,0.00014088,112750.0,112740.0,0.20755122]
[1758549001678,0.38698088,112750.0,112740.0,0.23710122]
[1758549001884,0.00841296,112750.0,112740.0,0.28742392]
[1758549002100,0.39517296,112750.0,112740.0,0.28742392]
[1758549002305,0.38690088,112750.0,112740.0,0.28742392]
[1758549002503,0.39517166,112750.0,112740.0,0.28742392]
[1758549002704,0.38690088,112750.0,112740.0,0.28742392]
[1758549002884,0.00014088,112750.0,112740.0,0.28742392]
[1758549003082,0.00014088,112750.0,112740.0,0.32290716]
[1758549003281,0.29078088,112750.0,112740.0,0.32290716]
[1758549003519,0.29378088,112750.0,112740.0,0.32290716]
[1758549003911,0.00314088,112750.0,112740.0,0.32290716]
[1758549004115,0.29378088,112750.0,112740.0,0.32290716]
[1758549004313,0.29078088,112750.0,112740.0,0.32290716]
[1758549004517,0.29178088,112750.0,112740.0,0.32790716]
[1758549004713,0.29178088,112750.0,112740.0,0.33890716]
[1758549004932,0.29178088,112750.0,112740.0,0.32790716]
[1758549005922,0.29078088,112750.0,112740.0,0.32290716]
[1758549006324,0.29178088,112750.0,112740.0,0.32890716]
[1758549006527,0.29178088,112750.0,112740.0,0.34190716]
[1758549010977,0.00114088,112750.0,112740.0,0.72730036]
[1758549011405,0.00114088,112750.0,112740.0,0.34190716]
[1758549012660,0.00182088,112750.0,112740.0,0.31739716]
[1758549012885,0.00182088,112750.0,112740.0,0.28220526]
[1758549013304,0.00182088,112750.0,112740.0,0.31441716]
[1758549013849,0.34114088,112750.0,112740.0,0.34238716]
[1758549015848,0.63118088,112750.0,112740.0,0.34238716]
[1758549016099,0.63186088,112750.0,112740.0,0.13495784]
[1758549016315,0.63186088,112750.0,112740.0,0.08463514]
[1758549016526,0.64278088,112750.0,112740.0,0.26203446]
[1758549016702,0.64278088,112750.0,112740.0,0.08463514]
[1758549016703,0.64321088,112750.0,112740.0,0.08463514]
[1758549016923,0.64278088,112750.0,112740.0,0.08463514]
[1758549017166,1.56659088,112750.0,112740.0,0.08601098]
[1758549017492,1.66251088,112750.0,112740.0,0.08601098]
[1758549018350,1.66251088,112750.0,112740.0,0.2634103]
[1758549018351,1.25601788,112750.0,112740.0,0.2634103]
[1758549018524,1.35193788,112750.0,112740.0,0.2634103]
[1758549018778,1.35193788,112750.0,112740.0,0.08601098]
[1758549019928,0.96554788,112750.0,112740.0,0.2634103]
[1758549020145,0.63118088,112750.0,112740.0,0.3235222]
[1758549020355,0.34114088,112750.0,112740.0,0.3235222]
[1758549020563,0.63118088,112750.0,112740.0,0.3235222]
[1758549021488,0.34114088,112750.0,112740.0,0.3235222]
[1758549021690,0.63118088,112750.0,112740.0,0.3235222]
[1758549023155,0.00114088,112750.0,112740.0,0.3235222]
[1758549023358,0.29118088,112750.0,112740.0,0.3235222]
[1758549026232,0.00114088,112750.0,112740.0,0.3235222]
[1758549026486,0.27466088,112750.0,112740.0,0.3235222]
[1758549027096,0.29114088,112750.0,112740.0,0.3235222]
[1758549028571,0.29114088,112750.0,112740.0,0.7089154]
[1758549028771,0.00114088,112750.0,112740.0,0.7089154]
[1758549028983,0.29114088,112750.0,112740.0,0.7089154]
[1758549029194,0.29114088,112750.0,112740.0,0.64806219]
[1758549029415,0.29114088,112750.0,112740.0,0.65011219]
[1758549029850,0.29114088,112750.0,112740.0,0.26471899]
[1758549030057,0.00114088,112750.0,112740.0,1.00508186]
[1758549030268,0.00114088,112750.0,112740.0,1.29508186]
[1758549031146,0.00114088,112750.0,112740.0,1.35204376]
[1758549031762,0.00114088,112750.0,112740.0,1.40204376]
[1758549033426,1e-08,112750.0,112740.0,1.45204376]
[1758549034712,1e-08,112750.0,112740.0,1.64386994]
[1758549034909,1e-08,112750.0,112740.0,1.35386994]
[1758549035111,1e-08,112750.0,112740.0,1.64382994]
[1758549037278,1e-08,112750.0,112740.0,1.98382994]
[1758549037482,1e-08,112750.0,112740.0,2.27243963]
[1758549037876,1e-08,112750.0,112740.0,2.00273963]
[1758549038080,0.17678631,112790.0,112780.0,0.1773364]
[1758549038330,0.08099128,112790.0,112780.0,0.21581903]
[1758549038536,0.08099128,112790.0,112780.0,0.3601006]
[1758549038537,0.07139128,112790.0,112780.0,0.3601006]
[1758549038677,0.07139128,112790.0,112780.0,0.64871029]
[1758549038903,0.00012497,112790.0,112780.0,0.64871029]
[1758549039937,0.00012497,112790.0,112780.0,0.93859029]
[1758549040803,0.00012497,112790.0,112780.0,0.94259029]
[1758549042812,0.00012497,112790.0,112780.0,0.65271029]
[1758549043012,0.00012497,112790.0,112780.0,0.94255029]
[1758549043211,0.00012497,112790.0,112780.0,0.65271029]
[1758549043438,0.00012497,112790.0,112780.0,1.00783943]
[1758549043847,0.00012497,112790.0,112780.0,0.71922974]
[1758549044084,0.00012497,112790.0,112780.0,1.00783943]
[1758549044284,0.00012497,112790.0,112780.0,0.42938974]
[1758549044496,0.00012497,112790.0,112780.0,0.71799943]
[1758549044697,0.02917497,112790.0,112780.0,0.69032974]
[1758549044907,0.03741314,112790.0,112780.0,0.28510817]
[1758549045120,0.03741314,112790.0,112780.0,0.31526007]
[1758549045542,0.03741314,112790.0,112770.0,0.44703798]
[1758549045752,0.01669076,112790.0,112780.0,0.1773364]
[1758549045924,0.01051314,112790.0,112780.0,0.1773364]
[1758549046334,0.04041314,112790.0,112780.0,0.1773364]
[1758549046540,0.04659076,112790.0,112780.0,0.1773364]
[1758549046735,0.04659076,112790.0,112780.0,0.23977384]
[1758549046936,0.04659076,112790.0,112780.0,0.24177384]
[1758549047134,0.04041314,112790.0,112780.0,0.24177384]
[1758549048185,0.04659286,112790.0,112780.0,0.24177384]
[1758549049211,0.04659436,112790.0,112780.0,0.24177384]
[1758549049424,0.04363436,112790.0,112780.0,0.24382384]
[1758549049578,0.01754436,112790.0,112780.0,0.24681384]
[1758549049805,0.01351314,112790.0,112780.0,0.26764384]
[1758549050008,0.01351314,112790.0,112780.0,0.24382384]
[1758549050239,0.01969436,112790.0,112780.0,0.24382384]
[1758549050409,0.01136314,112790.0,112780.0,0.30078574]
[1758549051047,0.01136314,112790.0,112780.0,1.2340851]
[1758549051246,0.00914122,112810.0,112800.0,0.20745686]
[1758549051505,0.01489816,112810.0,112800.0,0.2747932]
[1758549051690,0.00871694,112810.0,112800.0,0.56340289]
[1758549052129,0.00871694,112810.0,112800.0,0.85312289]
[1758549052718,0.01871694,112810.0,112800.0,0.5645132]
[1758549053120,0.00871694,112810.0,112800.0,0.5645132]
[1758549053326,0.01171694,112810.0,112800.0,0.5645132]
[1758549053550,0.01471694,112810.0,112800.0,0.5645132]
[1758549053777,0.01471694,112810.0,112800.0,1.0253222]
[1758549053980,0.00346941,112810.0,112800.0,1.0253222]
[1758549054205,0.00346941,112810.0,112800.0,1.0753222]
[1758549054408,0.00346941,112810.0,112800.0,1.1253222]
[1758549054880,0.00046941,112810.0,112800.0,0.8356022]
[1758549055086,0.00046941,112810.0,112800.0,1.1252822]
[1758549055947,0.00046941,112810.0,112800.0,1.1352822]
[1758549056124,0.00046941,112810.0,112800.0,0.8456022]
[1758549056323,0.00046941,112810.0,112800.0,0.42006287]
[1758549056590,0.00261941,112810.0,112800.0,0.63088287]
[1758549056782,0.02655941,112810.0,112800.0,0.34620287]
[1758549057284,0.02655941,112810.0,112800.0,0.34824287]
[1758549057487,0.00261941,112810.0,112800.0,0.34324287]
[1758549057906,0.00261941,112810.0,112800.0,0.34624287]
[1758549058053,0.00261941,112810.0,112800.0,0.40323142]
[1758549058251,0.00261941,112810.0,112800.0,0.40523142]
[1758549058458,0.00046941,112810.0,112800.0,0.43163142]
[1758549058655,0.00046941,112810.0,112800.0,1.07687075]
[1758549059258,0.00046941,112810.0,112800.0,1.12687075]
[1758549059463,0.00046941,112810.0,112800.0,1.17687075]
[1758549059740,0.00046941,112810.0,112800.0,0.80133142]
[1758549059931,0.20104,112840.0,112830.0,0.17725782]
[1758549060141,0.21157601,112840.0,112830.0,0.1949836]
[1758549060499,0.03709601,112840.0,112830.0,0.1949836]
[1758549060702,0.03404601,112840.0,112830.0,0.1970236]
[1758549060938,0.01053601,112840.0,112830.0,0.1949836]
[1758549061132,0.01153601,112840.0,112830.0,0.2271755]
[1758549061304,0.00937601,112840.0,112830.0,0.2535755]
[1758549061504,0.01437601,112840.0,112830.0,0.2535755]
[1758549061751,0.0143805,112840.0,112830.0,0.33884517]
[1758549062155,0.0093805,112840.0,112830.0,0.33884517]
[1758549062363,0.0093805,112840.0,112830.0,0.62844517]
[1758549062606,0.0113805,112840.0,112830.0,0.62840517]
[1758549062780,0.0093805,112840.0,112830.0,0.33884517]
[1758549062994,0.0093805,112840.0,112830.0,0.62840517]
[1758549063205,0.0083805,112840.0,112830.0,0.63040517]
[1758549063406,0.0083805,112840.0,112830.0,0.63140517]
[1758549063614,0.0083805,112840.0,112830.0,0.34184517]
[1758549063820,0.0105405,112840.0,112830.0,0.62843517]
[1758549064041,0.01053733,112840.0,112830.0,0.62743517]
[1758549064323,0.00837733,112840.0,112830.0,0.63440517]
[1758549065268,0.01053733,112840.0,112830.0,0.63236517]
[1758549065501,0.00228489,112840.0,112830.0,0.63436517]
[1758549065732,0.00228489,112840.0,112830.0,0.33987517]
[1758549065970,0.01053711,112840.0,112830.0,0.33987517]
[1758549066200,0.01053711,112840.0,112830.0,0.34487517]
[1758549066432,0.01053841,112840.0,112830.0,0.34487517]
[1758549066896,0.01053841,112840.0,112830.0,0.34784517]
[1758549067128,0.00837841,112840.0,112830.0,0.34784517]
[1758549067411,0.00837841,112840.0,112830.0,0.63736517]
[1758549067623,0.01053841,112840.0,112830.0,0.63736517]
[1758549068114,0.00837841,112840.0,112830.0,0.4148026]
[1758549068720,0.00837841,112840.0,112830.0,0.3913726]
[1758549068939,0.00837841,112840.0,112830.0,0.7042826]
[1758549069288,0.00837489,112840.0,112830.0,0.7042826]
[1758549070719,0.00837489,112840.0,112830.0,0.4148026]
[1758549070927,0.00837489,112840.0,112830.0,0.7042426]
[1758549071165,0.01053489,112840.0,112830.0,0.4148026]
[1758549071374,0.03709489,112840.0,112830.0,0.30109293]
[1758549071988,0.04328081,112840.0,112830.0,0.30109293]
[1758549074377,0.01456081,112840.0,112830.0,0.30610293]
[1758549074626,0.01456081,112840.0,112830.0,0.1486258]
[1758549074834,0.01456081,112840.0,112830.0,0.4863836]
[1758549075083,0.01456081,112840.0,112830.0,0.46865782]
[1758549076638,0.01456081,112840.0,112830.0,0.49248782]
[1758549077624,0.01456081,112840.0,112830.0,0.61041939]
[1758549078074,0.01456081,112840.0,112830.0,0.98595872]
[1758549078265,0.01349699,112860.0,112850.0,0.1772264]
[1758549078483,0.01561699,112860.0,112850.0,0.1772264]
[1758549078743,0.03898699,112860.0,112850.0,0.1772264]
[1758549079404,0.03998699,112860.0,112850.0,0.1772264]
[1758549080269,0.04698699,112860.0,112850.0,0.1772264]
[1758549080443,0.04698699,112860.0,112850.0,0.21505484]
[1758549080962,0.01052,112860.0,112850.0,0.21705484]
[1758549081164,0.0084,112860.0,112850.0,0.24088484]
[1758549081484,0.01052,112860.0,112850.0,0.24088484]
[1758549082101,0.00252,112860.0,112850.0,0.24088484]
[1758549082295,0.0004,112860.0,112850.0,0.24088484]
[1758549082554,0.0114,112860.0,112850.0,0.24088484]
[1758549082780,0.0024,112860.0,112850.0,0.61893417]
[1758549083008,0.0064,112860.0,112850.0,0.24339484]
[1758549083235,0.0064,112860.0,112850.0,1.02363574]
[1758549084732,0.0004,112860.0,112850.0,1.02363574]
[1758549084944,0.0004,112860.0,112850.0,1.02563574]
[1758549085156,0.0004,112860.0,112850.0,0.33066451]
[1758549085367,0.0004,112860.0,112850.0,0.36081641]
[1758549085575,0.0004,112860.0,112850.0,0.64754641]
[1758549086656,0.0004,112860.0,112850.0,0.65005641]
[1758549088601,0.0004,112870.0,112860.0,0.1772107]
[1758549088850,0.0004,112870.0,112860.0,0.36185355]
[1758549089064,0.0004,112870.0,112860.0,0.68321545]
[1758549089277,0.0004,112870.0,112860.0,0.68070545]
[1758549089717,0.0004,112870.0,112860.0,0.68317545]
[1758549089925,0.0034,112870.0,112860.0,0.36666545]
[1758549090101,0.00541,112870.0,112860.0,0.65582545]
[1758549090328,0.0034,112870.0,112860.0,0.68066545]
[1758549090785,0.0004,112890.0,112880.0,0.1771793]
[1758549090991,0.01702714,112890.0,112880.0,0.23946673]
[1758549091400,0.01501714,112890.0,112880.0,0.21462673]
[1758549091687,0.00054072,112890.0,112880.0,0.23946673]
[1758549092125,0.00054072,112890.0,112880.0,0.52858673]
[1758549092356,0.00054072,112890.0,112880.0,0.6440083]
[1758549092592,0.03313532,112910.0,112900.0,0.17714791]
[1758549092810,0.02695686,112910.0,112900.0,0.21257765]
[1758549093030,0.04961686,112910.0,112900.0,0.21257765]
[1758549093700,0.04961686,112910.0,112900.0,0.20957765]
[1758549094634,0.02179686,112910.0,112900.0,0.21158765]
[1758549094848,0.02380686,112910.0,112900.0,0.23642765]
[1758549095086,0.01760477,112910.0,112900.0,0.23742765]
[1758549096732,0.02075477,112910.0,112900.0,0.21057765]
[1758549096880,0.04341477,112910.0,112900.0,0.21057765]
[1758549097085,0.04339891,112910.0,112900.0,0.21057765]
[1758549097303,0.04339891,112910.0,112900.0,0.27766651]
[1758549097523,0.01758891,112910.0,112900.0,0.30451651]
[1758549097730,0.00732532,112910.0,112900.0,0.30451651]
[1758549098158,0.00933532,112910.0,112900.0,0.30451651]
[1758549099154,0.00732532,112910.0,112900.0,0.33466841]
[1758549099355,0.00933532,112910.0,112900.0,0.33466841]
[1758549099565,0.03514532,112910.0,112900.0,0.30781841]
[1758549099764,0.00933532,112910.0,112900.0,0.30982841]
[1758549100000,0.00732532,112910.0,112900.0,0.33466841]
[1758549100196,0.00732532,112910.0,112900.0,0.33717841]
[1758549102673,0.00732532,112910.0,112900.0,0.71136808]
[1758549102820,0.00732532,112910.0,112900.0,0.70885808]
[1758549103044,0.00732532,112910.0,112900.0,0.41993808]
[1758549103248,0.00732532,112910.0,112900.0,0.70885808]
[1758549103831,0.03514532,112910.0,112900.0,0.95170808]
[1758549104288,0.00732532,112910.0,112900.0,0.95371808]
[1758549104507,0.00732532,112910.0,112900.0,0.71136808]
[1758549106002,0.00933532,112910.0,112900.0,0.97855808]
[1758549106451,0.00933532,112910.0,112900.0,0.95367808]
[1758549106626,0.03514532,112910.0,112900.0,0.95166808]
[1758549107288,0.00732532,112910.0,112900.0,0.98102808]
[1758549107490,0.00732532,112910.0,112900.0,0.71132808]
[1758549110047,0.00732532,112910.0,112900.0,0.42244808]
[1758549110259,0.00732532,112910.0,112900.0,0.71128808]
[1758549111071,0.00692532,112910.0,112900.0,0.71128808]
[1758549111275,0.02266,112920.0,112910.0,0.17713222]
[1758549111538,0.03092203,112920.0,112910.0,0.53210189]
[1758549111743,0.03293203,112920.0,112910.0,0.53210189]
[1758549111904,0.03608203,112920.0,112910.0,0.53210189]
[1758549112713,0.03808203,112920.0,112910.0,0.53411189]
[1758549113137,0.03808203,112920.0,112910.0,0.58910379]
[1758549113369,0.03908203,112920.0,112910.0,0.58910379]
[1758549113975,0.01026203,112920.0,112910.0,0.67437346]
[1758549114197,0.00716,112920.0,112910.0,0.26240189]
[1758549114391,0.04228841,112920.0,112910.0,0.26240189]
[1758549115855,0.04228841,112920.0,112910.0,0.26340189]
[1758549116068,0.0422922,112920.0,112910.0,0.26340189]
[1758549116659,0.0432922,112920.0,112910.0,0.26240189]
[1758549116891,0.0452922,112920.0,112910.0,0.26240189]
[1758549117522,0.12663676,112920.0,112910.0,0.17713222]
[1758549118428,0.46663676,112920.0,112910.0,0.17713222]
[1758549119267,0.46663676,112920.0,112900.0,0.17414791]
[1758549119506,0.02637,112910.0,112900.0,0.17414791]
[1758549119719,0.0429847,112910.0,112900.0,0.17414791]
[1758549120335,0.75344147,112910.0,112890.0,0.18600763]
[1758549120552,0.02637,112900.0,112890.0,0.18600763]
[1758549120809,0.12511373,112900.0,112890.0,0.18600763]
[1758549122513,0.12511373,112900.0,112890.0,0.17716361]
[1758549122733,0.0196647,112900.0,112890.0,0.17716361]
[1758549122936,0.03470237,112900.0,112890.0,0.17716361]
[1758549123165,0.0429847,112900.0,112890.0,0.25483927]
[1758549123376,0.03470237,112900.0,112890.0,0.25683927]
[1758549123595,0.03470237,112900.0,112890.0,0.26183927]
[1758549124036,0.04298486,112900.0,112890.0,0.18416361]
[1758549124669,0.67166486,112900.0,112890.0,0.18416361]
[1758549125329,0.66338237,112900.0,112890.0,0.18416361]
[1758549126862,0.65718,112900.0,112890.0,0.18416361]
[1758549127069,0.66338709,112900.0,112890.0,0.18416361]
[1758549127281,0.66338709,112900.0,112890.0,0.23128327]
[1758549128035,0.37470709,112900.0,112890.0,0.23128327]
[1758549128222,0.66338709,112900.0,112890.0,0.23128327]
[1758549128462,0.64006709,112900.0,112890.0,0.23128327]
[1758549128659,0.35138709,112900.0,112890.0,0.23329327]
[1758549128863,0.31833136,112910.0,112900.0,0.17714791]
[1758549129093,0.29697561,112910.0,112900.0,0.22284103]
[1758549129292,0.63077,112910.0,112900.0,0.24672103]
[1758549129492,0.34213,112910.0,112900.0,0.24672103]
[1758549129692,0.05300893,112920.0,112910.0,0.17713222]
[1758549129916,1.25296399,112920.0,112910.0,0.17713222]
[1758549130067,0.75296399,112920.0,112910.0,0.17713222]
[1758549130275,0.74469003,112920.0,112910.0,0.17713222]
[1758549132381,0.74669003,112920.0,112910.0,0.17713222]
[1758549132592,0.34920547,112920.0,112910.0,0.22132655]
[1758549132817,0.00513,112920.0,112910.0,0.22132655]
[1758549133021,0.00513,112920.0,112910.0,0.24520655]
[1758549133461,0.003,112920.0,112910.0,0.24520655]
[1758549134330,0.003,112920.0,112910.0,0.56646845]
[1758549135355,0.002,112920.0,112910.0,0.56646845]
[1758549135535,0.01869813,112930.0,112920.0,0.17711654]
[1758549135734,0.01869813,112930.0,112920.0,0.57637694]
[1758549135735,0.00086895,112930.0,112920.0,0.57637694]
[1758549135918,0.00086895,112930.0,112920.0,0.57850694]
[1758549136433,0.00086895,112930.0,112920.0,0.30880694]
[1758549136908,0.00086895,112930.0,112920.0,0.39407661]
[1758549137114,0.00186895,112930.0,112920.0,0.39507661]
[1758549137331,0.01031318,112960.0,112950.0,0.17706949]
[1758549137542,0.38351383,112960.0,112950.0,0.21248355]
[1758549137747,0.00937383,112960.0,112950.0,0.21461355]
[1758549137968,0.00739383,112960.0,112950.0,0.26730545]
[1758549138181,0.02564126,112960.0,112950.0,0.26981545]
[1758549138379,0.00739383,112960.0,112950.0,0.55833545]
[1758549138606,0.00739383,112960.0,112950.0,0.55582545]
[1758549138810,0.00739383,112960.0,112950.0,0.26730545]
[1758549139185,0.01339383,112960.0,112950.0,0.26730545]
[1758549139588,0.01639383,112960.0,112950.0,0.26730545]
[1758549140026,0.01639383,112960.0,112950.0,0.55833545]
[1758549140745,0.01639383,112960.0,112950.0,0.26730545]
[1758549140904,0.01639383,112960.0,112950.0,0.55578545]
[1758549141135,0.01639383,112960.0,112950.0,0.26981545]
[1758549141322,0.04403383,112960.0,112950.0,0.49570139]
[1758549141517,0.04403383,112960.0,112950.0,0.17706949]
[1758549142477,0.07066077,112960.0,112950.0,0.17706949]
[1758549144994,0.35906077,112960.0,112950.0,0.17706949]
[1758549146146,0.04500077,112960.0,112950.0,0.17919949]
[1758549146363,0.04500077,112960.0,112950.0,0.21708055]
[1758549147334,0.02148383,112960.0,112950.0,0.21495055]
[1758549147544,0.01837383,112960.0,112950.0,0.24185055]
[1758549147876,0.01837383,112960.0,112950.0,0.21698055]
[1758549148095,0.04299383,112960.0,112950.0,0.21698055]
[1758549148294,0.04610383,112960.0,112950.0,0.21495055]
[1758549148499,0.04299383,112960.0,112950.0,0.21698055]
[1758549148909,0.38299383,112960.0,112950.0,0.21698055]
[1758549150256,0.01639383,112960.0,112950.0,0.56283245]
[1758549151642,0.01639383,112960.0,112950.0,0.56326445]
[1758549152001,0.01639383,112960.0,112950.0,0.27243445]
[1758549152211,0.01639383,112960.0,112950.0,0.56075445]
[1758549152617,0.01639383,112960.0,112950.0,0.56326445]
[1758549153060,0.01639383,112960.0,112950.0,0.83296445]
[1758549153268,0.01639383,112960.0,112950.0,0.83045445]
[1758549154276,0.02152383,112960.0,112950.0,0.80355445]
[1758549154478,0.04614383,112960.0,112950.0,0.44720149]
[1758549154898,0.04614383,112960.0,112950.0,0.51251869]
[1758549156718,0.01639383,112960.0,112950.0,0.51454869]
[1758549156933,0.01639383,112960.0,112950.0,0.53941869]
[1758549157061,0.01639383,112960.0,112950.0,0.62468836]
[1758549157497,0.01639383,112960.0,112950.0,0.62997026]
[1758549157700,0.01639383,112960.0,112950.0,0.65735026]
[1758549158102,0.01639383,112960.0,112950.0,0.74261993]
[1758549160449,0.01639383,112960.0,112950.0,1.12657993]
[1758549160659,0.01339383,112960.0,112950.0,1.12657993]
[1758549161072,0.01439383,112960.0,112950.0,0.74261993]
[1758549161306,0.01439383,112960.0,112950.0,1.12657993]
[1758549161515,0.0004,112970.0,112960.0,0.17705382]
[1758549161725,0.0004,112970.0,112960.0,0.29410862]
[1758549161907,0.0004,112970.0,112960.0,0.32351862]
[1758549162322,0.03082782,112990.0,112980.0,0.17702248]
[1758549162548,0.06684154,112990.0,112980.0,0.46522248]
[1758549162753,0.06684154,112990.0,112980.0,0.17702248]
[1758549162965,0.06684154,112990.0,112980.0,0.21920681]
[1758549163404,0.07304852,112990.0,112980.0,0.21920681]
[1758549163591,0.07405049,112990.0,112980.0,0.21920681]
[1758549164279,0.07405049,112990.0,112980.0,0.22020681]